bitfinex-derivatives/quotes_SOLF0:USTF0_20250117
["timestamp","ask_amount","ask_price","bid_price","bid_amount"]
[1737088671387,7.5442933,212.37,212.3,12.2555933]
[1737088673085,4.7106,212.34,212.3,12.2555933]
[1737088673782,4.7106,212.34,212.3,4.7113]
[1737088673987,4.7106,212.34,212.3,12.2555933]
[1737088674288,7.5442933,212.39,212.32,4.711]
[1737088675088,4.71,212.37,212.32,12.2552933]
[1737088675984,4.7097,212.39,212.34,7.5442933]
[1737088677179,4.7097,212.38,212.34,7.5442933]
[1737088677382,7.5442933,212.39,212.28,4.76]
[1737088677590,4.7104,212.36,212.31,12.2552933]
[1737088679986,7.5442933,212.37,212.31,12.2552933]
[1737088679987,4.7104,212.35,212.31,12.2552933]
[1737088681190,4.7107,212.34,212.31,7.5442933]
[1737088681889,7.5442933,212.37,212.31,12.2554933]
[1737088683091,4.7104,212.35,212.31,12.2554933]
[1737088684787,5.6397842,212.44,212.31,7.5442933]
[1737088685085,7.5442933,212.43,212.35,7.5442933]
[1737088685885,7.5442933,212.43,212.37,7.5442933]
[1737088686086,7.5442933,212.45,212.37,7.5442933]
[1737088687091,4.7088,212.43,212.38,4.7097]
[1737088687486,7.5442933,212.45,212.38,4.7097]
[1737088687687,4.7089,212.42,212.37,12.2541933]
[1737088688789,4.7086,212.44,212.39,7.5442933]
[1737088689392,4.7084,212.44,212.39,7.5442933]
[1737088689591,7.5442933,212.46,212.39,7.5442933]
[1737088690092,4.7084,212.44,212.39,7.5442933]
[1737088692087,4.7084,212.44,212.39,12.2537933]
[1737088692285,7.5442933,212.48,212.41,7.5442933]
[1737088692490,7.5442933,212.5,212.43,7.5442933]
[1737088692790,4.7075,212.48,212.43,7.5442933]
[1737088693182,4.7075,212.48,212.43,12.2528933]
[1737088693382,7.5442933,212.5,212.43,7.5442933]
[1737088693591,4.7078,212.47,212.43,7.5442933]
[1737088693786,7.5442933,212.48,212.41,7.5442933]
[1737088694289,4.708,212.46,212.41,7.5442933]
[1737088695192,4.708,212.46,212.41,12.2532933]
[1737088695586,7.5442933,212.46,212.38,4.7095]
[1737088695782,7.5442933,212.46,212.38,12.2537933]
[1737088695993,7.5442933,212.46,212.4,7.5442933]
[1737088696194,15.5193061,212.54,212.42,7.5442933]
[1737088696195,7.5442933,212.48,212.42,7.5442933]
[1737088697892,4.7079,212.46,212.42,12.2530933]
[1737088698293,4.7077,212.47,212.42,12.2530933]
[1737088700291,7.5442933,212.5,212.37,4.6057]
[1737088700597,3.1066,212.54,212.39,7.5442933]
[1737088700796,7.5442933,212.46,212.39,7.5442933]
[1737088701297,7.5442933,212.47,212.39,7.5442933]
[1737088701497,7.5442933,212.47,212.41,7.5442933]
[1737088702094,4.7082,212.45,212.41,7.5442933]
[1737088706996,4.7082,212.45,212.4,4.7092]
[1737088710098,12.2526933,212.44,212.39,4.7095]
[1737088710305,7.5442933,212.42,212.37,4.6057]
[1737088711200,4.7091,212.41,212.37,4.6057]
[1737088712808,4.7091,212.41,212.37,9.3156]
[1737088715609,4.7091,212.41,212.36,4.7101]
[1737088715811,12.2536933,212.4,212.35,7.5442933]
[1737088716813,12.2536933,212.4,212.35,12.2544933]
[1737088717013,12.2536933,212.4,212.35,4.7102]
[1737088724421,12.43923567,212.46,212.39,7.5442933]
[1737088724620,7.5442933,212.48,212.41,7.5442933]
[1737088724811,147.32887588,212.51,212.43,7.5442933]
[1737088725016,154.87316918,212.51,212.43,7.5442933]
[1737088725416,7.5442933,212.51,212.43,7.5442933]
[1737088726321,4.7072,212.5,212.44,4.7084]
[1737088726519,4.7072,212.5,212.43,7.5442933]
[1737088726716,4.7072,212.5,212.45,12.2523933]
[1737088728415,12.2509933,212.52,212.47,4.7077]
[1737088728617,4.7067,212.52,212.47,4.7077]
[1737088729019,12.2509933,212.52,212.47,4.7077]
[1737088730519,7.5442933,212.52,212.47,4.7077]
[1737088730719,7.5442933,212.48,212.38,4.7097]
[1737088730917,7.5442933,212.39,212.32,7.5442933]
[1737088731423,7.5442933,212.39,212.32,12.2551933]
[1737088731622,4.7097,212.38,212.31,2.9955]
[1737088731819,7.5442933,212.39,212.31,15.2509933]
[1737088732221,12.2539933,212.39,212.31,10.5397933]
[1737088732517,7.5442933,212.39,212.31,10.5397933]
[1737088732714,4.7097,212.38,212.32,4.711]
[1737088733521,12.2537933,212.39,212.32,4.711]
[1737088734820,4.7095,212.39,212.33,12.2550933]
[1737088735020,12.2537933,212.39,212.33,12.2550933]
[1737088735424,12.2537933,212.39,212.33,4.7108]
[1737088736121,3.0292,212.47,212.35,7.5442933]
[1737088736323,7.5442933,212.44,212.35,7.5442933]
[1737088736525,7.5442933,212.42,212.35,7.5442933]
[1737088738027,7.5442933,212.42,212.33,7.5442933]
[1737088738228,7.5442933,212.4,212.33,7.5442933]
[1737088738930,7.5442933,212.4,212.35,4.7103]
[1737088739824,4.7095,212.39,212.33,4.7107]
[1737088740027,7.5442933,212.38,212.33,4.7107]
[1737088740829,12.2541933,212.38,212.31,10.5397933]
[1737088742229,12.2541933,212.38,212.32,4.7109]
[1737088743922,12.2541933,212.38,212.3,7.5442933]
[1737088744129,12.2541933,212.38,212.33,4.7108]
[1737088744634,4.7099,212.38,212.33,4.7108]
[1737088745029,12.2532933,212.42,212.36,7.5442933]
[1737088745531,4.709,212.42,212.36,7.5442933]
[1737088746832,4.7086,212.44,212.38,7.5442933]
[1737088747229,7.5442933,212.45,212.38,7.5442933]
[1737088747932,4.7084,212.44,212.4,4.7092]
[1737088749229,4.7081,212.46,212.4,4.7092]
[1737088749427,12.2523933,212.46,212.4,4.7092]
[1737088749629,154.48124142,212.54,212.4,4.7091]
[1737088749830,7.5442933,212.48,212.35,4.76]
[1737088750030,7.5442933,212.48,212.41,7.5442933]
[1737088750227,7.5442933,212.48,212.43,4.7086]
[1737088750433,4.7077,212.47,212.41,7.5442933]
[1737088751133,4.7077,212.47,212.42,4.7088]
[1737088751730,7.5442933,212.48,212.41,7.5442933]
[1737088752236,7.5442933,212.46,212.37,1.5759]
[1737088752425,4.7087,212.43,212.37,1.5759]
[1737088753632,4.7087,212.43,212.36,7.5442933]
[1737088753935,12.2531933,212.42,212.34,7.5442933]
[1737088754433,12.43357579,212.48,212.34,7.5442933]
[1737088754635,154.48124142,212.52,212.36,7.5442933]
[1737088754827,7.5442933,212.44,212.38,7.5442933]
[1737088755030,12.2527933,212.44,212.39,4.7093]
[1737088755734,12.2527933,212.44,212.4,4.7092]
[1737088756135,7.5442933,212.46,212.4,7.5442933]
[1737088757734,7.5442933,212.46,212.42,4.7087]
[1737088757928,12.2522933,212.46,212.42,4.7087]
[1737088758737,4.7078,212.47,212.42,4.7087]
[1737088762042,4.7071,212.5,212.45,4.708]
[1737088762337,7.5442933,212.51,212.44,7.5442933]
[1737088762536,7.5442933,212.53,212.44,7.5442933]
[1737088762841,4.7068,212.51,212.44,7.5442933]
[1737088763640,4.7068,212.51,212.46,4.7077]
[1737088764043,12.2510933,212.51,212.46,4.7077]
[1737088771347,4.7068,212.51,212.46,4.7077]
[1737088777451,7.5442933,212.47,212.3,6.56872203]
[1737088777650,7.5442933,212.38,212.3,11.12992203]
[1737088777850,7.5442933,212.38,212.3,9.55562203]
[1737088778148,7.5442933,212.36,212.3,14.26692203]
[1737088778347,7.5442933,212.34,212.3,2.9869]
[1737088778549,7.5442933,212.34,212.3,1.5484]
[1737088778745,12.2549933,212.34,212.27,1.5743]
[1737088779349,12.2549933,212.34,212.28,4.7119]
[1737088782248,4.7107,212.34,212.28,4.7119]
[1737088782651,12.2549933,212.34,212.28,4.7119]
[1737088783149,154.48124142,212.45,212.32,4.711]
[1737088783350,7.5442933,212.39,212.32,12.2552933]
[1737088784254,4.7097,212.38,212.32,12.2552933]
[1737088785455,12.2537933,212.39,212.33,4.7107]
[1737088786354,7.5442933,212.39,212.33,4.7107]
[1737088786551,4.7097,212.38,212.33,4.7107]
[1737088788855,7.5442933,212.39,212.32,7.5442933]
[1737088789156,7.5442933,212.41,212.34,7.5442933]
[1737088790354,4.7093,212.41,212.34,7.5442933]
[1737088791058,4.7093,212.41,212.36,4.7101]
[1737088795058,4.7096,212.39,212.34,12.2548933]
[1737088795263,12.2538933,212.39,212.34,4.7106]
[1737088796559,7.5442933,212.39,212.31,4.8]
[1737088796765,7.5442933,212.37,212.32,4.7108]
[1737088797761,12.2542933,212.37,212.32,4.7108]
[1737088797965,7.5442933,212.35,212.32,4.7108]
[1737088799569,7.5442933,212.35,212.3,4.7115]
[1737088800570,7.5442933,212.35,212.28,7.5442933]
[1737088800766,7.5442933,212.33,212.29,4.7117]
[1737088801669,7.5442933,212.33,212.27,1.5743]
[1737088801869,12.2552933,212.33,212.27,6.2863]
[1737088802163,12.2552933,212.33,212.27,1.5743]
[1737088802972,12.2552933,212.33,212.29,4.7117]
[1737088811276,7.5442933,212.33,212.29,4.7117]
[1737088813076,7.5442933,212.33,212.27,4.712]
[1737088813677,4.7111,212.32,212.27,4.712]
[1737088813980,4.7111,212.32,212.27,4.7121]
[1737088814377,7.5442933,212.31,212.27,4.7121]
[1737088815779,7.5442933,212.33,212.26,7.5442933]
[1737088816981,7.5442933,212.33,212.28,4.7119]
[1737088819180,7.5442933,212.31,212.27,4.7121]
[1737088819481,7.5442933,212.31,212.23,7.5442933]
[1737088819984,154.48124142,212.38,212.27,7.5442933]
[1737088820182,7.5442933,212.34,212.27,7.5442933]
[1737088820783,12.2550933,212.34,212.29,4.7117]
[1737088822882,12.2550933,212.34,212.3,4.7114]
[1737088825787,12.2550933,212.34,212.29,4.7117]
[1737088826890,7.5442933,212.34,212.29,4.7117]
[1737088827090,7.5442933,212.32,212.29,4.7117]
[1737088832295,7.5442933,212.32,212.21,26.27488812]
[1737088832495,12.2553933,212.32,212.27,4.7121]
[1737088832694,12.2553933,212.32,212.23,7.5442933]
[1737088833695,7.5442933,212.32,212.23,7.5442933]
[1737088833891,7.5442933,212.32,212.28,4.7119]
[1737088834095,389.87538664,212.52,212.31,7.5442933]
[1737088834293,169.66288321,212.48,212.26,88.22]
[1737088834599,7.5442933,212.44,212.27,4.98]
[1737088834897,7.5442933,212.4,212.3,7.5442933]
[1737088835092,7.5442933,212.4,212.31,1.89130906]
[1737088835291,7.5442933,212.38,212.34,4.7104]
[1737088835497,7.5442933,212.36,212.28,12.5242933]
[1737088835697,7.5442933,212.36,212.29,1.89148733]
[1737088835997,7.5442933,212.36,212.28,12.5242933]
[1737088835998,7.5442933,212.36,212.3,1.89148733]
[1737088836197,7.5442933,212.36,212.31,1.89148733]
[1737088836497,7.5442933,212.36,212.33,4.7108]
[1737088839899,7.5442933,212.38,212.33,4.7108]
[1737088843400,4.7093,212.4,212.33,4.7108]
[1737088843600,7.5442933,212.39,212.33,4.7108]
[1737088843797,7.5442933,212.39,212.34,4.7106]
[1737088843998,7.5442933,212.39,212.32,7.5442933]
[1737088844198,7.5442933,212.41,212.32,7.5442933]
[1737088844401,7.5442933,212.41,212.35,4.7103]
[1737088845203,12.2533933,212.41,212.35,4.7103]
[1737088845504,7.5442933,212.41,212.35,4.7103]
[1737088846803,4.7093,212.4,212.35,4.7103]
[1737088847702,7.5442933,212.39,212.34,4.7106]
[1737088850608,4.7098,212.38,212.33,4.7108]
[1737088850807,7.5442933,212.39,212.32,7.5442933]
[1737088851613,4.71,212.37,212.32,7.5442933]
[1737088852510,4.71,212.37,212.32,12.2552933]
[1737088856020,4.7094,212.4,212.34,4.7106]
[1737088856220,9.80377186,212.46,212.34,7.5442933]
[1737088856420,7.5442933,212.42,212.34,7.5442933]
[1737088857315,12.2532933,212.42,212.37,4.7099]
[1737088857722,4.7091,212.41,212.37,4.7099]
[1737088858123,7.5442933,212.4,212.32,7.5442933]
[1737088858324,4.7096,212.39,212.32,7.5442933]
[1737088858525,7.5442933,212.4,212.32,7.5442933]
[1737088858722,7.5442933,212.38,212.33,4.7106]
[1737088860125,4.7098,212.38,212.33,4.7106]
[1737088861823,4.7098,212.38,212.34,4.7106]
[1737088864229,4.709,212.42,212.37,4.7099]
[1737088864429,7.5442933,212.41,212.37,4.7099]
[1737088864827,12.2533933,212.41,212.37,4.7099]
[1737088865730,4.7091,212.41,212.37,4.7099]
[1737088871029,130.29984147,212.51,212.36,7.5442933]
[1737088871236,7.5442933,212.49,212.41,7.5442933]
[1737088872133,7.5442933,212.49,212.43,7.5442933]
[1737088872935,12.2515933,212.49,212.43,12.2527933]
[1737088873127,12.2515933,212.49,212.43,7.5442933]
[1737088873635,4.7073,212.49,212.43,7.5442933]
[1737088873837,4.7073,212.49,212.44,4.7082]
[1737088874027,7.5442933,212.51,212.45,7.5442933]
[1737088874537,7.5442933,212.51,212.47,4.7077]
[1737088875040,6.2099,212.52,212.47,4.7077]
[1737088875432,6.2099,212.52,212.45,7.5442933]
[1737088875632,6.2099,212.52,212.46,4.7079]
[1737088877235,3.044,212.54,212.39,1.4764]
[1737088877236,4.92,212.62,212.47,7.5442933]
[1737088877440,1.4961,212.59,212.49,7.5442933]
[1737088877939,12.2499933,212.56,212.51,4.7067]
[1737088879139,4.706,212.55,212.5,4.707]
[1737088889848,207.57273872,212.73,212.51,7.5442933]
[1737088890044,4.7051,212.59,212.54,4.7062]
[1737088890342,7.5442933,212.61,212.53,7.5442933]
[1737088891237,4.7051,212.59,212.54,4.7062]
[1737088891441,1.5044,212.67,212.55,7.5442933]
[1737088891641,12.2486933,212.63,212.57,4.7055]
[1737088892040,7.5442933,212.63,212.57,4.7055]
[1737088893145,4.7044,212.62,212.57,4.7055]
[1737088893350,7.5442933,212.63,212.55,7.5442933]
[1737088893650,7.5442933,212.61,212.55,7.5442933]
[1737088893851,4.705,212.6,212.55,7.5442933]
[1737088894252,4.705,212.6,212.55,12.2501933]
[1737088901356,4.7051,212.59,212.55,12.2501933]
[1737088901553,7.5442933,212.62,212.53,4.7062]
[1737088901754,7.5442933,212.58,212.47,3.0566]
[1737088901955,7.5442933,212.56,212.49,7.5442933]
[1737088902850,7.5442933,212.54,212.47,9.1166933]
[1737088903055,7.5442933,212.54,212.47,7.5442933]
[1737088904154,4.7069,212.51,212.47,7.5442933]
[1737088904555,7.5442933,212.52,212.45,7.5442933]
[1737088904953,7.5442933,212.52,212.44,7.5442933]
[1737088905154,4.7062,212.54,212.48,12.2517933]
[1737088905351,4.7062,212.54,212.5,7.5442933]
[1737088907259,4.7064,212.53,212.48,12.2517933]
[1737088907854,4.7064,212.53,212.48,4.7075]
[1737088908060,4.7064,212.53,212.48,12.2517933]
[1737088908659,4.7069,212.51,212.43,4.7086]
[1737088908861,4.7069,212.51,212.47,7.5442933]
[1737088909364,7.5442933,212.55,212.47,7.5442933]
[1737088909560,4.7064,212.54,212.47,7.5442933]
[1737088909956,4.7064,212.53,212.48,4.7075]
[1737088912067,4.7066,212.52,212.47,12.2519933]
[1737088912564,4.7066,212.52,212.49,7.5442933]
[1737088914466,4.7066,212.52,212.47,12.2519933]
[1737088915270,4.7066,212.52,212.48,4.7075]
[1737088917872,4.7057,212.56,212.51,4.7066]
[1737088918171,130.29984147,212.65,212.55,7.5442933]
[1737088918370,137.84413477,212.65,212.57,7.5442933]
[1737088918572,4.7045,212.62,212.57,7.5442933]
[1737088918873,7.5442933,212.63,212.55,7.5442933]
[1737088919068,7.5442933,212.61,212.52,1.525]
[1737088919269,7.5442933,212.6,212.53,7.5442933]
[1737088919468,6.83985393,212.69,212.5,4.7071]
[1737088919469,4.706,212.55,212.5,4.7071]
[1737088919773,7.5442933,212.6,212.53,7.5442933]
[1737088920374,7.5442933,212.56,212.49,7.5442933]
[1737088922175,4.7061,212.55,212.5,4.707]
[1737088922973,4.7051,212.6,212.54,4.7061]
[1737088923174,7.5442933,212.59,212.54,4.7061]
[1737088923672,4.7051,212.6,212.54,4.7061]
[1737088927476,4.7056,212.57,212.52,4.7064]
[1737088929979,4.7058,212.56,212.52,4.7064]
[1737088933482,4.7053,212.58,212.54,4.7061]
[1737088933682,7.5442933,212.6,212.54,4.7061]
[1737088934082,4.7051,212.59,212.54,4.7061]
[1737088935086,4.7053,212.58,212.54,4.7061]
[1737088936085,4.7049,212.6,212.55,4.7058]
[1737088936482,7.5442933,212.61,212.53,7.5442933]
[1737088936786,4.7053,212.58,212.53,12.2504933]
[1737088940280,4.7053,212.58,212.54,4.7062]
[1737088944392,12.2486933,212.62,212.57,4.7054]
[1737088944895,4.7049,212.6,212.55,4.7057]
[1737088945189,4.7049,212.6,212.54,7.5442933]
[1737088945388,4.7046,212.62,212.57,4.7055]
[1737088947093,4.7046,212.61,212.57,4.7055]
[1737088948496,4.5401,212.67,212.58,7.5442933]
[1737088948797,130.29984147,212.72,212.71,4.7024]
[1737088948997,346.28132864,212.74,212.71,7.5442933]
[1737088949197,306.70127733,212.74,212.73,7.5442933]
[1737088949399,4.7009,212.78,212.73,7.5442933]
[1737088949695,4.7009,212.78,212.77,7.5442933]
[1737088950995,4.7016,212.75,212.73,7.5442933]
[1737088951190,4.7016,212.75,212.7,7.5442933]
[1737088951396,7.5442933,212.77,212.68,5.0]
[1737088951591,4.7018,212.74,212.7,7.5442933]
[1737088952796,7.5442933,212.77,212.7,7.5442933]
[1737088954091,4.702,212.73,212.7,7.5442933]
[1737088955897,4.7023,212.72,212.7,7.5442933]
[1737088956903,4.7024,212.71,212.7,7.5442933]
[1737088957699,14.14,212.91,212.7,7.5442933]
[1737088957904,9.0438933,212.82,212.74,7.5442933]
[1737088958100,7.5442933,212.8,212.74,7.5442933]
[1737088958603,7.5442933,212.76,212.69,7.5442933]
[1737088958999,4.7023,212.72,212.69,7.5442933]
[1737088966106,4.7025,212.71,212.67,7.5442933]
[1737088968217,4.96,212.8,212.69,7.5442933]
[1737088968418,4.7022,212.73,212.69,7.5442933]
[1737088968617,7.5442933,212.75,212.69,7.5442933]
[1737088970220,4.7019,212.74,212.69,7.5442933]
[1737088970516,7.5442933,212.75,212.69,7.5442933]
[1737088971216,4.7023,212.72,212.69,7.5442933]
[1737088972116,4.7023,212.72,212.67,7.5442933]
[1737088974117,4.7025,212.71,212.67,7.5442933]
[1737088979316,4.7012,212.77,212.72,4.7021]
[1737088981720,4.7012,212.77,212.73,7.5442933]
[1737088982127,4.7008,212.79,212.74,4.7015]
[1737088982326,7.5442933,212.79,212.73,7.5442933]
[1737088983128,157.50054142,212.82,212.73,7.5442933]
[1737088983328,165.04483472,212.82,212.73,7.5442933]
[1737088984222,4.7007,212.79,212.75,4.7015]
[1737088984725,4.7007,212.79,212.74,4.7017]
[1737088987232,4.7004,212.8,212.75,4.7014]
[1737088987628,10.5635933,212.82,212.75,4.7014]
[1737088987928,4.7007,212.79,212.75,4.7014]
[1737088988631,4.7007,212.79,212.73,7.5442933]
[1737088988833,4.7007,212.79,212.74,4.7017]
[1737088991035,7.5442933,212.84,212.77,7.5442933]
[1737088991236,7.5442933,212.82,212.75,7.5442933]
[1737088991435,1.4664,212.88,212.75,7.5442933]
[1737088991436,4.7007,212.79,212.75,4.7014]
[1737088991934,4.7006,212.8,212.75,4.7014]
[1737088992128,7.5442933,212.81,212.74,4.7017]
[1737088993033,7.5442933,212.81,212.73,14.11301533]
[1737088993034,4.7011,212.78,212.73,18.81501533]
[1737088993531,4.7011,212.78,212.73,12.2462933]
[1737088993933,4.7011,212.78,212.73,18.81501533]
[1737088994733,4.7011,212.78,212.73,12.2462933]
[1737088996736,4.7016,212.75,212.72,6.56872203]
[1737088997737,4.7013,212.76,212.71,12.2466933]
[1737088998843,4.701,212.78,212.72,4.702]
[1737088999038,9.0369933,212.79,212.72,4.702]
[1737088999435,4.7013,212.76,212.72,4.702]
[1737088999637,7.5442933,212.77,212.71,18.81541533]
[1737089000638,7.5442933,212.77,212.71,12.2466933]
[1737089001135,4.7015,212.75,212.71,12.2466933]
[1737089002840,4.7018,212.74,212.71,7.5442933]
[1737089003643,4.7018,212.74,212.69,30.97758812]
[1737089004131,4.702,212.73,212.7,5.18277844]
[1737089004536,7.5442933,212.75,212.7,5.18277844]
[1737089004835,4.7025,212.71,212.69,26.27488812]
[1737089005232,7.5442933,212.73,212.68,6.56872203]
[1737089005431,4.7026,212.7,212.68,6.56872203]
[1737089005832,4.7026,212.7,212.67,26.27488812]
[1737089006439,4.7026,212.7,212.67,6.56872203]
[1737089007042,4.7026,212.7,212.68,5.18548254]
[1737089007943,4.7026,212.7,212.67,26.27488812]
[1737089008542,4.7026,212.7,212.67,6.56872203]
[1737089010143,4.7024,212.71,212.67,6.56872203]
[1737089010345,4.7024,212.71,212.68,5.18586973]
[1737089010541,5.2481847,212.8,212.73,4.7019]
[1737089010746,7.5442933,212.78,212.73,4.7019]
[1737089012149,12.2452933,212.78,212.73,4.7019]
[1737089014752,7.5442933,212.76,212.71,30.97708812]
[1737089015353,7.5442933,212.76,212.71,11.27092203]
[1737089016049,12.2457933,212.76,212.71,30.97708812]
[1737089018657,7.5442933,212.74,212.71,26.27488812]
[1737089019050,12.2458933,212.75,212.71,26.27488812]
[1737089019550,12.2458933,212.75,212.7,26.27488812]
[1737089019750,12.2458933,212.75,212.7,30.97748812]
[1737089019950,12.2462933,212.73,212.7,26.27488812]
[1737089020353,12.2462933,212.73,212.71,11.75617974]
[1737089021457,12.2462933,212.73,212.69,30.97768812]
[1737089022852,12.2462933,212.73,212.7,11.75575055]
[1737089023348,12.2462933,212.73,212.69,11.27152203]
[1737089024254,12.2462933,212.73,212.7,6.56872203]
[1737089025857,4.7024,212.71,212.7,6.56872203]
[1737089026057,4.7024,212.71,212.69,26.27488812]
[1737089026058,12.2466933,212.71,212.69,26.27488812]
[1737089026659,12.2466933,212.71,212.7,5.18797223]
[1737089027456,12.2466933,212.71,212.69,6.56872203]
[1737089027959,4.7026,212.7,212.68,26.27488812]
[1737089028458,4.7026,212.7,212.68,6.56872203]
[1737089028761,7.5442933,212.69,212.68,6.56872203]
[1737089029158,7.5442933,212.69,212.68,5.1895644]
[1737089029358,12.2471933,212.69,212.68,5.1895644]
[1737089030059,4.7024,212.72,212.68,5.1895644]
[1737089030261,7.5442933,212.7,212.67,30.97818812]
[1737089030457,7.47690362,212.7,212.67,30.97818812]
[1737089031060,7.47690362,212.7,212.67,83.52796437]
[1737089033060,12.18000362,212.68,212.67,78.82466437]
[1737089033561,12.18000362,212.68,212.66,26.27488812]
[1737089034158,4.7033,212.67,212.66,26.27488812]
[1737089034960,4.7033,212.67,212.66,52.2256445]
[1737089035463,4.7033,212.67,212.65,26.27488812]
[1737089036159,4.7033,212.67,212.64,26.27488812]
[1737089037059,7.47690362,212.66,212.64,26.27488812]
[1737089038162,4.7037,212.65,212.64,26.27488812]
[1737089038353,4.7037,212.65,212.63,6.56872203]
[1737089038554,7.47690362,212.64,212.63,6.56872203]
[1737089039062,7.47690362,212.64,212.62,26.27488812]
[1737089039768,7.47690362,212.64,212.61,6.56872203]
[1737089039955,12.18090362,212.64,212.61,6.56872203]
[1737089040965,4.7042,212.63,212.61,6.56872203]
[1737089041167,7.47690362,212.62,212.61,6.56872203]
[1737089041467,7.47690362,212.62,212.6,6.56872203]
[1737089042167,7.47690362,212.62,212.59,11.27362203]
[1737089042768,7.47690362,212.62,212.59,4.7049]
[1737089043262,154.48124142,212.74,212.58,26.27488812]
[1737089043462,7.47690362,212.62,212.58,26.27488812]
[1737089043865,7.47690362,212.62,212.58,6.56872203]
[1737089044068,7.47690362,212.62,212.59,4.705]
[1737089044472,12.18110362,212.63,212.59,4.705]
[1737089045169,4.7033,212.68,212.61,7.47690362]
[1737089045372,7.47690362,212.7,212.63,7.47690362]
[1737089045668,4.7022,212.73,212.67,4.7033]
[1737089045864,7.47690362,212.72,212.67,4.7033]
[1737089047170,12.17910362,212.72,212.65,12.18050362]
[1737089048763,4.7022,212.72,212.65,7.47690362]
[1737089048965,7.47690362,212.73,212.65,7.47690362]
[1737089050069,7.47690362,212.73,212.68,4.7031]
[1737089050673,12.17890362,212.73,212.68,4.7031]
[1737089050871,1.427,212.78,212.7,4.7026]
[1737089051073,7.47690362,212.77,212.7,4.7026]
[1737089051371,1.5214,212.81,212.73,4.7018]
[1737089051561,7.47690362,212.79,212.73,4.7018]
[1737089052173,4.7009,212.78,212.73,4.7018]
[1737089055471,7.47690362,212.77,212.71,4.7022]
[1737089057071,4.7016,212.75,212.71,4.7022]
[1737089061976,7.47690362,212.74,212.68,6.56872203]
[1737089062173,7.47690362,212.72,212.68,6.56872203]
[1737089062878,7.47690362,212.72,212.67,6.2689]
[1737089063079,12.17910362,212.72,212.67,6.2689]
[1737089063381,7.47690362,212.72,212.67,1.5657]
[1737089063878,4.7027,212.7,212.65,4.82]
[1737089064079,12.17960362,212.7,212.65,4.82]
[1737089064579,4.7029,212.69,212.65,4.82]
[1737089065578,4.7029,212.69,212.64,4.7038]
[1737089068382,4.7033,212.67,212.63,26.27488812]
[1737089068879,7.47690362,212.68,212.63,30.97908812]
[1737089069280,7.47690362,212.68,212.63,11.27292203]
[1737089069983,7.47690362,212.68,212.64,5.17530119]
[1737089070178,12.18000362,212.68,212.64,5.17530119]
[1737089070587,12.18000362,212.68,212.63,11.27292203]
[1737089071081,4.7033,212.67,212.63,6.56872203]
[1737089074381,5.24173229,212.78,212.63,6.56872203]
[1737089074584,7.47690362,212.7,212.63,6.56872203]
[1737089074783,7.47690362,212.7,212.62,7.47690362]
[1737089075084,7.47690362,212.7,212.64,7.47690362]
[1737089075282,2.9723,212.79,212.64,7.47690362]
[1737089075680,7.47690362,212.71,212.64,7.47690362]
[1737089076486,7.47690362,212.71,212.66,7.47690362]
[1737089077084,7.47690362,212.74,212.66,7.47690362]
[1737089078091,4.7023,212.72,212.67,4.7032]
[1737089079390,12.17920362,212.72,212.67,4.7032]
[1737089079585,7.47690362,212.72,212.67,4.7032]
[1737089079791,4.7025,212.71,212.67,4.7032]
[1737089086697,7.47690362,212.72,212.66,14.04562565]
[1737089086895,7.47690362,212.72,212.68,4.703]
[1737089087896,4.7022,212.73,212.68,4.703]
[1737089088098,2.9723,212.79,212.68,7.47690362]
[1737089088294,7.47690362,212.76,212.7,7.47690362]
[1737089088798,4.7017,212.75,212.7,12.17940362]
[1737089089196,7.47690362,212.76,212.7,4.7025]
[1737089089395,7.47690362,212.74,212.68,26.27488812]
[1737089089598,12.17870362,212.74,212.69,4.7028]
[1737089093498,12.17870362,212.74,212.69,30.97768812]
[1737089094500,12.17930362,212.72,212.69,26.27488812]
[1737089094900,12.17930362,212.72,212.68,26.27488812]
[1737089095403,12.17930362,212.72,212.67,83.52796437]
[1737089095797,4.7024,212.71,212.67,78.82466437]
[1737089099102,4.7024,212.71,212.67,26.27488812]
[1737089099898,4.7024,212.71,212.68,52.25588824]
[1737089100506,7.47690362,212.72,212.68,52.25588824]
[1737089100707,7.47690362,212.7,212.68,26.27488812]
[1737089101606,4.7028,212.69,212.68,26.27488812]
[1737089102007,4.7028,212.69,212.67,26.27488812]
[1737089102210,5.25291334,212.78,212.67,26.27488812]
[1737089102404,12.17930362,212.72,212.67,26.27488812]